Workbook

Sheet Title
M7: 2174
A25: Image credit: pixel2013 / Pixabay

Sheet Question
A1: R.A.:
B2: Someone sent me a data set
B3: It has subtotals at the top of each group
B4: Somehow, they created subtotals that you can filter!
B5: Follow up: How can I get the percentage calculation on the subtotal row to work?

Sheet Data
A1: Product | B1: Date | C1: Customer | D1: Quantity | E1: Revenue | F1: COGS | G1: Profit | H1: GP%
C2: Grand Total | D2: =SUBTOTAL(9,D4:D592) -> 313900 | E2: =SUBTOTAL(9,E4:E592) -> 6707812 | F2: =SUBTOTAL(9,F4:F592) -> 2978394 | G2: =SUBTOTAL(9,G4:G592) -> 3729418 | H2: =+G2/E2 -> 0.5559812946
C3: ABC Stores Total | D3: =SUBTOTAL(9,D4:D7) -> 2600 | E3: =SUBTOTAL(9,E4:E7) -> 54048 | F3: =SUBTOTAL(9,F4:F7) -> 23780 | G3: =SUBTOTAL(9,G4:G7) -> 30268 | H3: 0.5600207223
A4: DEF | B4: 2017-02-08 | C4: ABC Stores | D4: 900 | E4: 20610 | F4: 8856 | G4: 11754 | H4: =+G4/E4 -> 0.5703056769
A5: ABC | B5: 2017-02-23 | C5: ABC Stores | D5: 400 | E5: 8116 | F5: 3388 | G5: 4728 | H5: =+G5/E5 -> 0.5825529818
A6: DEF | B6: 2017-08-16 | C6: ABC Stores | D6: 300 | E6: 7032 | F6: 3066 | G6: 3966 | H6: 0.5639931741
A7: DEF | B7: 2018-05-02 | C7: ABC Stores | D7: 1000 | E7: 18290 | F7: 8470 | G7: 9820 | H7: 0.5369054128
C8: AT&T Total | D8: =SUBTOTAL(9,D9:D48) -> 23100 | E8: =SUBTOTAL(9,E9:E48) -> 498937 | F8: =SUBTOTAL(9,F9:F48) -> 219978 | G8: =SUBTOTAL(9,G9:G48) -> 278959 | H8: 0.5591066608
A9: XYZ | B9: 2017-01-06 | C9: AT&T | D9: 100 | E9: 2401 | F9: 1022 | G9: 1379 | H9: 0.5743440233
A10: XYZ | B10: 2017-03-02 | C10: AT&T | D10: 300 | E10: 6765 | F10: 3066 | G10: 3699 | H10: 0.5467849224
A11: DEF | B11: 2017-03-09 | C11: AT&T | D11: 900 | E11: 21357 | F11: 8856 | G11: 12501 | H11: 0.585335019
A12: DEF | B12: 2017-03-13 | C12: AT&T | D12: 300 | E12: 5370 | F12: 2541 | G12: 2829 | H12: 0.5268156425
A13: XYZ | B13: 2017-04-04 | C13: AT&T | D13: 200 | E13: 4124 | F13: 2044 | G13: 2080 | H13: 0.5043646945
A14: ABC | B14: 2017-04-07 | C14: AT&T | D14: 600 | E14: 12318 | F14: 5082 | G14: 7236 | H14: 0.5874330248
A15: DEF | B15: 2017-04-19 | C15: AT&T | D15: 500 | E15: 10195 | F15: 4920 | G15: 5275 | H15: 0.5174104953
A16: XYZ | B16: 2017-04-26 | C16: AT&T | D16: 700 | E16: 13412 | F16: 5929 | G16: 7483 | H16: 0.5579331942
A17: DEF | B17: 2017-05-16 | C17: AT&T | D17: 1000 | E17: 20020 | F17: 9840 | G17: 10180 | H17: 0.5084915085
A18: XYZ | B18: 2017-05-26 | C18: AT&T | D18: 900 | E18: 19062 | F18: 9198 | G18: 9864 | H18: 0.5174693107
A19: ABC | B19: 2017-06-09 | C19: AT&T | D19: 500 | E19: 11660 | F19: 4920 | G19: 6740 | H19: 0.5780445969
A20: DEF | B20: 2017-06-23 | C20: AT&T | D20: 800 | E20: 16936 | F20: 7872 | G20: 9064 | H20: 0.5351913085
A21: XYZ | B21: 2017-06-30 | C21: AT&T | D21: 600 | E21: 15006 | F21: 6132 | G21: 8874 | H21: 0.5913634546
A22: XYZ | B22: 2017-07-06 | C22: AT&T | D22: 200 | E22: 4440 | F22: 2044 | G22: 2396 | H22: 0.5396396396
A23: XYZ | B23: 2017-07-06 | C23: AT&T | D23: 500 | E23: 10990 | F23: 5110 | G23: 5880 | H23: 0.5350318471
A24: DEF | B24: 2017-07-18 | C24: AT&T | D24: 600 | E24: 12756 | F24: 5904 | G24: 6852 | H24: 0.537158984
A25: DEF | B25: 2017-07-25 | C25: AT&T | D25: 500 | E25: 11845 | F25: 4920 | G25: 6925 | H25: 0.584634867
A26: DEF | B26: 2017-07-31 | C26: AT&T | D26: 500 | E26: 9350 | F26: 4235 | G26: 5115 | H26: 0.5470588235
A27: XYZ | B27: 2017-08-23 | C27: AT&T | D27: 900 | E27: 21834 | F27: 9198 | G27: 12636 | H27: 0.5787304204
A28: XYZ | B28: 2017-09-12 | C28: AT&T | D28: 900 | E28: 15255 | F28: 7623 | G28: 7632 | H28: 0.5002949853
A29: DEF | B29: 2017-10-02 | C29: AT&T | D29: 900 | E29: 21546 | F29: 8856 | G29: 12690 | H29: 0.5889724311
A30: DEF | B30: 2017-10-25 | C30: AT&T | D30: 500 | E30: 9460 | F30: 4235 | G30: 5225 | H30: 0.5523255814
A31: XYZ | B31: 2017-11-08 | C31: AT&T | D31: 100 | E31: 1740 | F31: 847 | G31: 893 | H31: 0.5132183908
A32: XYZ | B32: 2017-11-27 | C32: AT&T | D32: 400 | E32: 10044 | F32: 4088 | G32: 5956 | H32: 0.5929908403
A33: XYZ | B33: 2018-01-17 | C33: AT&T | D33: 600 | E33: 14448 | F33: 6132 | G33: 8316 | H33: 0.5755813953
A34: DEF | B34: 2018-02-12 | C34: AT&T | D34: 300 | E34: 6018 | F34: 2952 | G34: 3066 | H34: 0.5094715852
A35: DEF | B35: 2018-02-12 | C35: AT&T | D35: 1000 | E35: 20310 | F35: 8470 | G35: 11840 | H35: 0.5829640571
A36: XYZ | B36: 2018-02-13 | C36: AT&T | D36: 1000 | E36: 25310 | F36: 10220 | G36: 15090 | H36: 0.5962070328
A37: XYZ | B37: 2018-02-16 | C37: AT&T | D37: 800 | E37: 15592 | F37: 6776 | G37: 8816 | H37: 0.5654181632
A38: XYZ | B38: 2018-02-19 | C38: AT&T | D38: 100 | E38: 1842 | F38: 847 | G38: 995 | H38: 0.5401737242
A39: DEF | B39: 2018-03-15 | C39: AT&T | D39: 800 | E39: 17056 | F39: 7872 | G39: 9184 | H39: 0.5384615385
A40: DEF | B40: 2018-03-20 | C40: AT&T | D40: 800 | E40: 16288 | F40: 6776 | G40: 9512 | H40: 0.5839882122
A41: XYZ | B41: 2018-04-06 | C41: AT&T | D41: 200 | E41: 4192 | F41: 1694 | G41: 2498 | H41: 0.5958969466
A42: DEF | B42: 2018-05-07 | C42: AT&T | D42: 800 | E42: 15488 | F42: 6776 | G42: 8712 | H42: 0.5625
A43: DEF | B43: 2018-05-15 | C43: AT&T | D43: 300 | E43: 6522 | F43: 2952 | G43: 3570 | H43: 0.5473781049
A44: XYZ | B44: 2018-06-14 | C44: AT&T | D44: 100 | E44: 1795 | F44: 847 | G44: 948 | H44: 0.5281337047
A45: DEF | B45: 2018-06-18 | C45: AT&T | D45: 600 | E45: 12690 | F45: 5904 | G45: 6786 | H45: 0.534751773
A46: XYZ | B46: 2018-07-10 | C46: AT&T | D46: 900 | E46: 21042 | F46: 9198 | G46: 11844 | H46: 0.5628742515
A47: DEF | B47: 2018-08-14 | C47: AT&T | D47: 600 | E47: 14154 | F47: 5904 | G47: 8250 | H47: 0.5828740992
A48: XYZ | B48: 2018-09-05 | C48: AT&T | D48: 800 | E48: 18304 | F48: 8176 | G48: 10128 | H48: 0.5533216783
C49: BankUnited Total | D49: =SUBTOTAL(9,D50:D77) -> 18700 | E49: =SUBTOTAL(9,E50:E77) -> 406326 | F49: =SUBTOTAL(9,F50:F77) -> 178585 | G49: =SUBTOTAL(9,G50:G77) -> 227741 | H49: 0.5604883763
A50: ABC | B50: 2017-03-16 | C50: BankUnited | D50: 700 | E50: 14686 | F50: 5929 | G50: 8757 | H50: 0.5962821735
A51: ABC | B51: 2017-04-06 | C51: BankUnited | D51: 800 | E51: 19288 | F51: 8176 | G51: 11112 | H51: 0.5761094981
A52: ABC | B52: 2017-04-07 | C52: BankUnited | D52: 400 | E52: 8052 | F52: 3936 | G52: 4116 | H52: 0.5111773472
A53: ABC | B53: 2017-04-11 | C53: BankUnited | D53: 500 | E53: 9155 | F53: 4235 | G53: 4920 | H53: 0.5374112507
A54: ABC | B54: 2017-04-13 | C54: BankUnited | D54: 300 | E54: 6156 | F54: 2952 | G54: 3204 | H54: 0.5204678363
A55: ABC | B55: 2017-05-01 | C55: BankUnited | D55: 1000 | E55: 23990 | F55: 10220 | G55: 13770 | H55: 0.5739891622
A56: ABC | B56: 2017-06-06 | C56: BankUnited | D56: 1000 | E56: 25350 | F56: 10220 | G56: 15130 | H56: 0.5968441815
A57: ABC | B57: 2017-06-21 | C57: BankUnited | D57: 800 | E57: 15288 | F57: 6776 | G57: 8512 | H57: 0.5567765568
A58: ABC | B58: 2017-06-27 | C58: BankUnited | D58: 400 | E58: 9384 | F58: 4088 | G58: 5296 | H58: 0.5643648764
A59: ABC | B59: 2017-06-29 | C59: BankUnited | D59: 900 | E59: 18684 | F59: 9198 | G59: 9486 | H59: 0.5077071291
A60: ABC | B60: 2017-07-10 | C60: BankUnited | D60: 800 | E60: 18904 | F60: 7872 | G60: 11032 | H60: 0.5835801947
A61: ABC | B61: 2017-08-18 | C61: BankUnited | D61: 700 | E61: 14133 | F61: 5929 | G61: 8204 | H61: 0.5804853888
A62: ABC | B62: 2017-09-12 | C62: BankUnited | D62: 900 | E62: 21033 | F62: 8856 | G62: 12177 | H62: 0.5789473684
A63: ABC | B63: 2017-10-16 | C63: BankUnited | D63: 600 | E63: 11274 | F63: 5082 | G63: 6192 | H63: 0.5492283129
A64: ABC | B64: 2017-12-13 | C64: BankUnited | D64: 400 | E64: 7152 | F64: 3388 | G64: 3764 | H64: 0.5262863535
A65: ABC | B65: 2017-12-25 | C65: BankUnited | D65: 800 | E65: 14984 | F65: 6776 | G65: 8208 | H65: 0.5477843033
A66: ABC | B66: 2017-12-29 | C66: BankUnited | D66: 400 | E66: 9240 | F66: 4088 | G66: 5152 | H66: 0.5575757576
A67: ABC | B67: 2018-02-16 | C67: BankUnited | D67: 300 | E67: 6867 | F67: 3066 | G67: 3801 | H67: 0.5535168196
A68: ABC | B68: 2018-02-23 | C68: BankUnited | D68: 300 | E68: 7245 | F68: 2952 | G68: 4293 | H68: 0.5925465839
A69: ABC | B69: 2018-04-02 | C69: BankUnited | D69: 800 | E69: 15856 | F69: 7872 | G69: 7984 | H69: =+G69/E69 -> 0.5035317861
A70: ABC | B70: 2018-05-16 | C70: BankUnited | D70: 700 | E70: 17213 | F70: 6888 | G70: 10325 | H70: 0.5998373322
A71: ABC | B71: 2018-05-25 | C71: BankUnited | D71: 600 | E71: 12570 | F71: 6132 | G71: 6438 | H71: 0.5121718377
A72: ABC | B72: 2018-06-08 | C72: BankUnited | D72: 600 | E72: 14580 | F72: 5904 | G72: 8676 | H72: 0.5950617284
A73: ABC | B73: 2018-06-22 | C73: BankUnited | D73: 500 | E73: 8715 | F73: 4235 | G73: 4480 | H73: 0.5140562249
A74: ABC | B74: 2018-07-04 | C74: BankUnited | D74: 1000 | E74: 23970 | F74: 9840 | G74: 14130 | H74: 0.5894868586
A75: ABC | B75: 2018-07-17 | C75: BankUnited | D75: 900 | E75: 18576 | F75: 7623 | G75: 10953 | H75: 0.5896317829
A76: ABC | B76: 2018-08-23 | C76: BankUnited | D76: 900 | E76: 18756 | F76: 9198 | G76: 9558 | H76: 0.509596929
A77: ABC | B77: 2018-09-12 | C77: BankUnited | D77: 700 | E77: 15225 | F77: 7154 | G77: 8071 | H77: 0.5301149425
C78: Boeing Total | D78: =SUBTOTAL(9,D79:D82) -> 3300 | E78: =SUBTOTAL(9,E79:E82) -> 71651 | F78: =SUBTOTAL(9,F79:F82) -> 32471 | G78: =SUBTOTAL(9,G79:G82) -> 39180 | H78: 0.5468172112
A79: ABC | B79: 2017-01-31 | C79: Boeing | D79: 800 | E79: 16936 | F79: 8176 | G79: 8760 | H79: 0.5172413793
A80: ABC | B80: 2017-05-31 | C80: Boeing | D80: 1000 | E80: 24130 | F80: 10220 | G80: 13910 | H80: 0.5764608371
A81: ABC | B81: 2018-02-05 | C81: Boeing | D81: 1000 | E81: 20950 | F81: 9840 | G81: 11110 | H81: 0.5303102625
A82: ABC | B82: 2018-02-28 | C82: Boeing | D82: 500 | E82: 9635 | F82: 4235 | G82: 5400 | H82: 0.5604566684
C83: CitiGroup Total | D83: =SUBTOTAL(9,D84:D131) -> 29100 | E83: =SUBTOTAL(9,E84:E131) -> 613514 | F83: =SUBTOTAL(9,F84:F131) -> 275105 | G83: =SUBTOTAL(9,G84:G131) -> 338409 | H83: 0.5515913247
A84: ABC | B84: 2017-01-09 | C84: CitiGroup | D84: 600 | E84: 11628 | F84: 5082 | G84: 6546 | H84: 0.5629514964
A85: ABC | B85: 2017-01-16 | C85: CitiGroup | D85: 1000 | E85: 20770 | F85: 8470 | G85: 12300 | H85: 0.5922002889
A86: ABC | B86: 2017-01-26 | C86: CitiGroup | D86: 100 | E86: 1817 | F86: 847 | G86: 970 | H86: 0.5338470006
A87: DEF | B87: 2017-01-30 | C87: CitiGroup | D87: 700 | E87: 13867 | F87: 6888 | G87: 6979 | H87: 0.5032811711
A88: XYZ | B88: 2017-02-22 | C88: CitiGroup | D88: 1000 | E88: 24430 | F88: 10220 | G88: 14210 | H88: 0.5816618911
A89: XYZ | B89: 2017-02-24 | C89: CitiGroup | D89: 900 | E89: 18783 | F89: 9198 | G89: 9585 | H89: 0.5103018687
A90: ABC | B90: 2017-03-23 | C90: CitiGroup | D90: 400 | E90: 8016 | F90: 3388 | G90: 4628 | H90: 0.5773453094
A91: XYZ | B91: 2017-05-02 | C91: CitiGroup | D91: 1000 | E91: 22020 | F91: 10220 | G91: 11800 | H91: 0.5358764759
A92: DEF | B92: 2017-06-16 | C92: CitiGroup | D92: 1000 | E92: 21800 | F92: 9840 | G92: 11960 | H92: 0.5486238532
A93: XYZ | B93: 2017-07-04 | C93: CitiGroup | D93: 900 | E93: 19368 | F93: 9198 | G93: 10170 | H93: 0.5250929368
A94: ABC | B94: 2017-07-11 | C94: CitiGroup | D94: 800 | E94: 16144 | F94: 6776 | G94: 9368 | H94: 0.5802775025
A95: XYZ | B95: 2017-07-20 | C95: CitiGroup | D95: 800 | E95: 20008 | F95: 8176 | G95: 11832 | H95: 0.5913634546
A96: ABC | B96: 2017-07-21 | C96: CitiGroup | D96: 300 | E96: 5457 | F96: 2541 | G96: 2916 | H96: 0.5343595382
A97: ABC | B97: 2017-07-28 | C97: CitiGroup | D97: 600 | E97: 10602 | F97: 5082 | G97: 5520 | H97: 0.5206564799
A98: XYZ | B98: 2017-08-11 | C98: CitiGroup | D98: 800 | E98: 18208 | F98: 8176 | G98: 10032 | H98: 0.5509666081
A99: XYZ | B99: 2017-08-17 | C99: CitiGroup | D99: 100 | E99: 2517 | F99: 1022 | G99: 1495 | H99: 0.5939610648
A100: ABC | B100: 2017-08-22 | C100: CitiGroup | D100: 400 | E100: 7520 | F100: 3388 | G100: 4132 | H100: 0.5494680851
A101: ABC | B101: 2017-08-23 | C101: CitiGroup | D101: 800 | E101: 14136 | F101: 6776 | G101: 7360 | H101: 0.5206564799
A102: DEF | B102: 2017-08-30 | C102: CitiGroup | D102: 1000 | E102: 20540 | F102: 9840 | G102: 10700 | H102: 0.5209347614
A103: ABC | B103: 2017-09-06 | C103: CitiGroup | D103: 400 | E103: 8196 | F103: 3388 | G103: 4808 | H103: 0.5866276232
A104: DEF | B104: 2017-09-07 | C104: CitiGroup | D104: 500 | E104: 11295 | F104: 4920 | G104: 6375 | H104: 0.5644090305
A105: DEF | B105: 2017-09-18 | C105: CitiGroup | D105: 300 | E105: 7053 | F105: 2952 | G105: 4101 | H105: 0.5814547001
A106: DEF | B106: 2017-09-19 | C106: CitiGroup | D106: 100 | E106: 2410 | F106: 984 | G106: 1426 | H106: 0.5917012448
A107: DEF | B107: 2017-09-19 | C107: CitiGroup | D107: 400 | E107: 8204 | F107: 3936 | G107: 4268 | H107: 0.5202340322
A108: DEF | B108: 2017-09-22 | C108: CitiGroup | D108: 400 | E108: 8464 | F108: 3936 | G108: 4528 | H108: 0.5349716446
A109: ABC | B109: 2017-11-14 | C109: CitiGroup | D109: 900 | E109: 17505 | F109: 7623 | G109: 9882 | H109: 0.5645244216
A110: ABC | B110: 2017-11-28 | C110: CitiGroup | D110: 1000 | E110: 19250 | F110: 8470 | G110: 10780 | H110: 0.56
A111: DEF | B111: 2017-12-06 | C111: CitiGroup | D111: 600 | E111: 12798 | F111: 5904 | G111: 6894 | H111: 0.5386779184
A112: DEF | B112: 2018-01-05 | C112: CitiGroup | D112: 800 | E112: 15856 | F112: 7872 | G112: 7984 | H112: 0.5035317861
A113: ABC | B113: 2018-01-22 | C113: CitiGroup | D113: 500 | E113: 9575 | F113: 4235 | G113: 5340 | H113: 0.5577023499
A114: XYZ | B114: 2018-02-19 | C114: CitiGroup | D114: 500 | E114: 10400 | F114: 5110 | G114: 5290 | H114: 0.5086538462
A115: XYZ | B115: 2018-02-22 | C115: CitiGroup | D115: 300 | E115: 6789 | F115: 3066 | G115: 3723 | H115: 0.5483870968
A116: XYZ | B116: 2018-03-05 | C116: CitiGroup | D116: 600 | E116: 14634 | F116: 6132 | G116: 8502 | H116: 0.5809758098
A117: ABC | B117: 2018-03-19 | C117: CitiGroup | D117: 900 | E117: 18072 | F117: 7623 | G117: 10449 | H117: 0.578187251
A118: DEF | B118: 2018-05-23 | C118: CitiGroup | D118: 900 | E118: 19989 | F118: 8856 | G118: 11133 | H118: 0.556956326
A119: XYZ | B119: 2018-06-11 | C119: CitiGroup | D119: 100 | E119: 2058 | F119: 1022 | G119: 1036 | H119: 0.5034013605
A120: ABC | B120: 2018-06-25 | C120: CitiGroup | D120: 900 | E120: 15759 | F120: 7623 | G120: 8136 | H120: 0.5162764135
A121: ABC | B121: 2018-06-26 | C121: CitiGroup | D121: 400 | E121: 6944 | F121: 3388 | G121: 3556 | H121: 0.5120967742
A122: XYZ | B122: 2018-07-13 | C122: CitiGroup | D122: 500 | E122: 10940 | F122: 5110 | G122: 5830 | H122: 0.5329067642
A123: DEF | B123: 2018-07-17 | C123: CitiGroup | D123: 200 | E123: 4484 | F123: 1968 | G123: 2516 | H123: 0.5611061552
A124: ABC | B124: 2018-07-18 | C124: CitiGroup | D124: 700 | E124: 12131 | F124: 5929 | G124: 6202 | H124: 0.5112521639
A125: DEF | B125: 2018-07-20 | C125: CitiGroup | D125: 500 | E125: 11430 | F125: 4920 | G125: 6510 | H125: 0.5695538058
A126: DEF | B126: 2018-07-31 | C126: CitiGroup | D126: 800 | E126: 19424 | F126: 7872 | G126: 11552 | H126: 0.5947281713
A127: DEF | B127: 2018-08-07 | C127: CitiGroup | D127: 800 | E127: 17136 | F127: 7872 | G127: 9264 | H127: 0.5406162465
A128: DEF | B128: 2018-08-10 | C128: CitiGroup | D128: 400 | E128: 9484 | F128: 3936 | G128: 5548 | H128: 0.5849852383
A129: XYZ | B129: 2018-08-20 | C129: CitiGroup | D129: 400 | E129: 8284 | F129: 4088 | G129: 4196 | H129: 0.5065185901
A130: XYZ | B130: 2018-08-22 | C130: CitiGroup | D130: 100 | E130: 2309 | F130: 1022 | G130: 1287 | H130: 0.557384149
A131: XYZ | B131: 2018-08-29 | C131: CitiGroup | D131: 1000 | E131: 25010 | F131: 10220 | G131: 14790 | H131: 0.5913634546
C132: Compaq Total | D132: =SUBTOTAL(9,D133:D136) -> 2000 | E132: =SUBTOTAL(9,E133:E136) -> 39250 | F132: =SUBTOTAL(9,F133:F136) -> 18614 | G132: =SUBTOTAL(9,G133:G136) -> 20636 | H132: 0.5257579618
A133: XYZ | B133: 2017-09-13 | C133: Compaq | D133: 1000 | E133: 17250 | F133: 8470 | G133: 8780 | H133: =+G133/E133 -> 0.5089855072
A134: XYZ | B134: 2017-09-20 | C134: Compaq | D134: 400 | E134: 8556 | F134: 4088 | G134: 4468 | H134: 0.5222066386
A135: XYZ | B135: 2018-03-16 | C135: Compaq | D135: 400 | E135: 9064 | F135: 4088 | G135: 4976 | H135: 0.5489849956
A136: XYZ | B136: 2018-05-10 | C136: Compaq | D136: 200 | E136: 4380 | F136: 1968 | G136: 2412 | H136: 0.5506849315
C137: Cummins Inc. Total | D137: =SUBTOTAL(9,D138:D193) -> 28900 | E137: =SUBTOTAL(9,E138:E193) -> 622794 | F137: =SUBTOTAL(9,F138:F193) -> 274978 | G137: =SUBTOTAL(9,G138:G193) -> 347816 | H137: 0.5584767997
A138: DEF | B138: 2017-01-02 | C138: Cummins Inc. | D138: 1000 | E138: 22810 | F138: 10220 | G138: 12590 | H138: 0.5519508987
A139: DEF | B139: 2017-02-06 | C139: Cummins Inc. | D139: 300 | E139: 5700 | F139: 2541 | G139: 3159 | H139: 0.5542105263
A140: DEF | B140: 2017-02-08 | C140: Cummins Inc. | D140: 600 | E140: 13206 | F140: 5904 | G140: 7302 | H140: 0.5529304861
A141: DEF | B141: 2017-02-09 | C141: Cummins Inc. | D141: 900 | E141: 16209 | F141: 7623 | G141: 8586 | H141: 0.529705719
A142: DEF | B142: 2017-03-08 | C142: Cummins Inc. | D142: 1000 | E142: 23090 | F142: 10220 | G142: 12870 | H142: 0.557384149
A143: DEF | B143: 2017-03-28 | C143: Cummins Inc. | D143: 100 | E143: 2457 | F143: 984 | G143: 1473 | H143: 0.5995115995
A144: DEF | B144: 2017-04-03 | C144: Cummins Inc. | D144: 1000 | E144: 25060 | F144: 10220 | G144: 14840 | H144: 0.5921787709
A145: DEF | B145: 2017-04-05 | C145: Cummins Inc. | D145: 200 | E145: 3802 | F145: 1694 | G145: 2108 | H145: 0.5544450289
A146: DEF | B146: 2017-05-12 | C146: Cummins Inc. | D146: 200 | E146: 3856 | F146: 1694 | G146: 2162 | H146: 0.5606846473
A147: DEF | B147: 2017-05-18 | C147: Cummins Inc. | D147: 100 | E147: 2221 | F147: 984 | G147: 1237 | H147: 0.556956326
A148: DEF | B148: 2017-06-05 | C148: Cummins Inc. | D148: 700 | E148: 15876 | F148: 7154 | G148: 8722 | H148: 0.549382716
A149: DEF | B149: 2017-06-26 | C149: Cummins Inc. | D149: 300 | E149: 6138 | F149: 2541 | G149: 3597 | H149: 0.5860215054
A150: DEF | B150: 2017-06-29 | C150: Cummins Inc. | D150: 100 | E150: 1836 | F150: 847 | G150: 989 | H150: 0.538671024
A151: DEF | B151: 2017-07-03 | C151: Cummins Inc. | D151: 100 | E151: 1913 | F151: 847 | G151: 1066 | H151: 0.5572399373
A152: DEF | B152: 2017-07-13 | C152: Cummins Inc. | D152: 500 | E152: 10295 | F152: 4235 | G152: 6060 | H152: 0.5886352598
A153: DEF | B153: 2017-07-14 | C153: Cummins Inc. | D153: 400 | E153: 7944 | F153: 3388 | G153: 4556 | H153: 0.5735146022
A154: DEF | B154: 2017-08-08 | C154: Cummins Inc. | D154: 100 | E154: 1877 | F154: 847 | G154: 1030 | H154: 0.5487480021
A155: DEF | B155: 2017-10-04 | C155: Cummins Inc. | D155: 800 | E155: 16856 | F155: 6776 | G155: 10080 | H155: 0.5980066445
A156: DEF | B156: 2017-10-17 | C156: Cummins Inc. | D156: 800 | E156: 14408 | F156: 6776 | G156: 7632 | H156: 0.529705719
A157: DEF | B157: 2017-12-08 | C157: Cummins Inc. | D157: 200 | E157: 4742 | F157: 1968 | G157: 2774 | H157: 0.5849852383
A158: DEF | B158: 2017-12-14 | C158: Cummins Inc. | D158: 600 | E158: 12282 | F158: 5904 | G158: 6378 | H158: 0.5192965315
A159: DEF | B159: 2017-12-18 | C159: Cummins Inc. | D159: 1000 | E159: 22680 | F159: 10220 | G159: 12460 | H159: 0.549382716
A160: DEF | B160: 2017-12-25 | C160: Cummins Inc. | D160: 200 | E160: 4010 | F160: 1694 | G160: 2316 | H160: 0.5775561097
A161: DEF | B161: 2017-12-29 | C161: Cummins Inc. | D161: 200 | E161: 4526 | F161: 1968 | G161: 2558 | H161: 0.565178966
A162: DEF | B162: 2018-01-03 | C162: Cummins Inc. | D162: 100 | E162: 2157 | F162: 984 | G162: 1173 | H162: 0.5438108484
A163: DEF | B163: 2018-01-15 | C163: Cummins Inc. | D163: 600 | E163: 13542 | F163: 6132 | G163: 7410 | H163: 0.5471865308
A164: DEF | B164: 2018-01-19 | C164: Cummins Inc. | D164: 400 | E164: 7752 | F164: 3388 | G164: 4364 | H164: 0.5629514964
A165: DEF | B165: 2018-01-23 | C165: Cummins Inc. | D165: 500 | E165: 10460 | F165: 4235 | G165: 6225 | H165: 0.595124283
A166: DEF | B166: 2018-01-24 | C166: Cummins Inc. | D166: 800 | E166: 18344 | F166: 8176 | G166: 10168 | H166: 0.5542956825
A167: DEF | B167: 2018-01-30 | C167: Cummins Inc. | D167: 800 | E167: 14216 | F167: 6776 | G167: 7440 | H167: 0.5233539674
A168: DEF | B168: 2018-02-06 | C168: Cummins Inc. | D168: 400 | E168: 7852 | F168: 3388 | G168: 4464 | H168: 0.5685175751
A169: DEF | B169: 2018-02-08 | C169: Cummins Inc. | D169: 900 | E169: 18990 | F169: 8856 | G169: 10134 | H169: 0.5336492891
A170: DEF | B170: 2018-02-20 | C170: Cummins Inc. | D170: 100 | E170: 1982 | F170: 847 | G170: 1135 | H170: 0.572653885
A171: DEF | B171: 2018-02-28 | C171: Cummins Inc. | D171: 400 | E171: 9156 | F171: 4088 | G171: 5068 | H171: 0.5535168196
A172: DEF | B172: 2018-03-07 | C172: Cummins Inc. | D172: 200 | E172: 4474 | F172: 1968 | G172: 2506 | H172: 0.5601251676
A173: DEF | B173: 2018-03-07 | C173: Cummins Inc. | D173: 100 | E173: 2487 | F173: 1022 | G173: 1465 | H173: 0.5890631283
A174: DEF | B174: 2018-03-12 | C174: Cummins Inc. | D174: 800 | E174: 16264 | F174: 7872 | G174: 8392 | H174: 0.5159862273
A175: XYZ | B175: 2018-03-14 | C175: Cummins Inc. | D175: 500 | E175: 12550 | F175: 5110 | G175: 7440 | H175: 0.5928286853
A176: XYZ | B176: 2018-03-30 | C176: Cummins Inc. | D176: 700 | E176: 16219 | F176: 6888 | G176: 9331 | H176: 0.5753129046
A177: XYZ | B177: 2018-04-18 | C177: Cummins Inc. | D177: 800 | E177: 17416 | F177: 7872 | G177: 9544 | H177: 0.5480018374
A178: XYZ | B178: 2018-04-19 | C178: Cummins Inc. | D178: 700 | E178: 13804 | F178: 5929 | G178: 7875 | H178: 0.5704868154
A179: XYZ | B179: 2018-04-26 | C179: Cummins Inc. | D179: 600 | E179: 13332 | F179: 5904 | G179: 7428 | H179: 0.5571557156
A180: XYZ | B180: 2018-05-07 | C180: Cummins Inc. | D180: 100 | E180: 2547 | F180: 1022 | G180: 1525 | H180: 0.5987436199
A181: XYZ | B181: 2018-05-14 | C181: Cummins Inc. | D181: 200 | E181: 4550 | F181: 2044 | G181: 2506 | H181: 0.5507692308
A182: XYZ | B182: 2018-05-17 | C182: Cummins Inc. | D182: 500 | E182: 12755 | F182: 5110 | G182: 7645 | H182: 0.599372795
A183: XYZ | B183: 2018-05-21 | C183: Cummins Inc. | D183: 300 | E183: 6156 | F183: 2541 | G183: 3615 | H183: 0.5872319688
A184: XYZ | B184: 2018-05-24 | C184: Cummins Inc. | D184: 100 | E184: 2409 | F184: 984 | G184: 1425 | H184: 0.5915317559
A185: XYZ | B185: 2018-05-28 | C185: Cummins Inc. | D185: 900 | E185: 19593 | F185: 9198 | G185: 10395 | H185: 0.5305466238
A186: XYZ | B186: 2018-06-01 | C186: Cummins Inc. | D186: 500 | E186: 12575 | F186: 5110 | G186: 7465 | H186: 0.593638171
A187: XYZ | B187: 2018-06-11 | C187: Cummins Inc. | D187: 600 | E187: 13566 | F187: 5904 | G187: 7662 | H187: 0.5647943388
A188: XYZ | B188: 2018-07-16 | C188: Cummins Inc. | D188: 1000 | E188: 21010 | F188: 8470 | G188: 12540 | H188: 0.5968586387
A189: XYZ | B189: 2018-08-01 | C189: Cummins Inc. | D189: 1000 | E189: 21740 | F189: 9840 | G189: 11900 | H189: 0.5473781049
A190: XYZ | B190: 2018-08-02 | C190: Cummins Inc. | D190: 900 | E190: 19674 | F190: 8856 | G190: 10818 | H190: 0.549862763
A191: XYZ | B191: 2018-08-20 | C191: Cummins Inc. | D191: 800 | E191: 17496 | F191: 8176 | G191: 9320 | H191: 0.532693187
A192: XYZ | B192: 2018-08-29 | C192: Cummins Inc. | D192: 500 | E192: 10380 | F192: 5110 | G192: 5270 | H192: 0.5077071291
A193: XYZ | B193: 2018-08-31 | C193: Cummins Inc. | D193: 700 | E193: 13552 | F193: 5929 | G193: 7623 | H193: 0.5625
C194: CUNA Insurance Total | D194: =SUBTOTAL(9,D195:D198) -> 2400 | E194: =SUBTOTAL(9,E195:E198) -> 51240 | F194: =SUBTOTAL(9,F195:F198) -> 22824 | G194: =SUBTOTAL(9,G195:G198) -> 28416 | H194: 0.5545667447
A195: DEF | B195: 2017-07-12 | C195: CUNA Insurance | D195: 800 | E195: 18072 | F195: 8176 | G195: 9896 | H195: 0.5475874281
A196: DEF | B196: 2018-01-29 | C196: CUNA Insurance | D196: 600 | E196: 14004 | F196: 5904 | G196: 8100 | H196: 0.5784061697
A197: DEF | B197: 2018-03-29 | C197: CUNA Insurance | D197: 200 | E197: 4060 | F197: 1968 | G197: 2092 | H197: =+G197/E197 -> 0.515270936
A198: DEF | B198: 2018-07-26 | C198: CUNA Insurance | D198: 800 | E198: 15104 | F198: 6776 | G198: 8328 | H198: 0.5513771186
C199: Exxon Total | D199: =SUBTOTAL(9,D200:D265) -> 33400 | E199: =SUBTOTAL(9,E200:E265) -> 704359 | F199: =SUBTOTAL(9,F200:F265) -> 311381 | G199: =SUBTOTAL(9,G200:G265) -> 392978 | H199: 0.5579228774
A200: ABC | B200: 2017-02-01 | C200: Exxon | D200: 600 | E200: 11430 | F200: 5082 | G200: 6348 | H200: 0.5553805774
... 392 more rows

Sheet Wrap Up
A1: Topics in this Episode
B3: R.A. asks? Can you filter data that has been subtotaled?
B4: How can you get the subtotals to appear at the top of each group?
B5: When you create the subtotals, uncheck Summary Below Data
B6: Can you use a Filter in a data set that has been subtotaled?
B7: Yes - but you should include blank cells as well
B8: How can you get the percentage calculation to work in the subtotal rows?
B9: Right now, the percentage is totaling the other rows instead of doing the calculation
B10: After adding subtotals, copy the percentage calculation from a non-subtotaled row to all other rows.
